fUSD/lending_fUSD_20240109
["ID","MTS","AMOUNT","RATE_DAILY","PERIOD"]
[310967677,1704836036204,-556.06,0.00042,30]
[310967678,1704836036213,-500.0,0.00042,30]
[310967679,1704836036222,-500.0,0.00042,30]
[310967680,1704836036231,-544.95,0.00042,30]
[310967681,1704836036241,-500.0,0.00042,30]
[310967682,1704836036251,-889.52,0.00042,30]
[310967683,1704836036260,-643.58,0.00042,30]
[310967684,1704836036270,-857.15,0.00042,30]
[310967685,1704836036279,-549.07,0.00042,30]
[310967686,1704836036288,-674.98,0.00042,30]
[310967687,1704836036297,-500.0,0.00042,30]
[310967688,1704836036307,-879.09,0.00042,30]
[310967689,1704836036316,-500.0,0.00042,30]
[310967690,1704836036325,-525.43,0.00042,30]
[310967691,1704836036334,-740.92,0.00042,30]
[310967692,1704836036344,-500.0,0.00042,30]
[310967693,1704836036353,-500.0,0.00042,30]
[310967694,1704836036362,-500.0,0.00042,30]
[310967695,1704836036371,-894.54,0.00042,30]
[310967696,1704836036380,-1210.61,0.00042,30]
[310967697,1704836036389,-500.0,0.00042,30]
[310967698,1704836036398,-1262.57,0.00042,30]
[310967699,1704836036408,-264.91639933,0.00042,30]
[310967700,1704836036417,-767.71,0.00042,30]
[310967701,1704836036426,-571.45,0.00042,30]
[310967702,1704836036435,-500.0,0.00042,30]
[310967703,1704836036444,-1000.0,0.00042,30]
[310967704,1704836036455,-1012.62,0.00042,30]
[310967705,1704836036464,-568.08,0.00042,30]
[310967706,1704836036472,-500.0,0.00042,30]
[310967707,1704836036481,-1247.69,0.00042,30]
[310967708,1704836036490,-500.0,0.00042,30]
[310967709,1704836036499,-504.29,0.00042,30]
[310967710,1704836036508,-744.29,0.00042,30]
[310967711,1704836036517,-500.0,0.00042,30]
[310967712,1704836036526,-1071.67,0.00042,30]
[310967713,1704836036535,-1041.65,0.00042,30]
[310967714,1704836036544,-597.48,0.00042,30]
[310967715,1704836036554,-317.09415947,0.00042,30]
[310967716,1704836036563,-670.96,0.00042,30]
[310967717,1704836036572,-500.0,0.00042,30]
[310967718,1704836036581,-992.5,0.00042,30]
[310967719,1704836036590,-500.0,0.00042,30]
[310967720,1704836036599,-1379.24,0.00042,30]
[310967721,1704836036608,-891.81,0.00042,30]
[310967722,1704836036616,-500.0,0.00042,30]
[310967723,1704836036625,-3464.95,0.00042,30]
[310967724,1704836036634,-838.55,0.00042,30]
[310967725,1704836036643,-660.81,0.00042,30]
[310967726,1704836036652,-1525.96,0.00042,30]
[310967727,1704836036661,-940.28,0.00042,30]
[310967728,1704836036670,-797.09,0.00042,30]
[310967729,1704836036678,-500.0,0.00042,30]
[310967730,1704836036687,-1021.78,0.00042,30]
[310967731,1704836036697,-500.0,0.00042,30]
[310967732,1704836036706,-765.32,0.00042,30]
[310967733,1704836036715,-624.2,0.00042,30]
[310967734,1704836036724,-1106.38,0.00042,30]
[310967735,1704836036733,-581.2,0.00042,30]
[310967736,1704836036743,-1950.33,0.00042,30]
[310967737,1704836036752,-779.64,0.00042,30]
[310967738,1704836036761,-500.0,0.00042,30]
[310967739,1704836036770,-500.0,0.00042,30]
[310967740,1704836036779,-557.57,0.00042,30]
[310967741,1704836036788,-578.59,0.00042,30]
[310967742,1704836036797,-742.05,0.00042,30]
[310967743,1704836036806,-291.8435346,0.00042,30]
[310967744,1704836036815,-275.93843035,0.00042,30]
[310967745,1704836036824,-718.23,0.00042,30]
[310967746,1704836036833,-500.0,0.00042,30]
[310967747,1704836036843,-500.0,0.00042,30]
[310967748,1704836036852,-1681.49,0.00042,30]
[310967749,1704836036861,-667.7,0.00042,30]
[310967750,1704836036870,-500.0,0.00042,30]
[310967751,1704836036880,-500.0,0.00042,30]
[310967752,1704836036889,-500.0,0.00042,30]
[310967753,1704836036898,-803.72,0.00042,30]
[310967754,1704836036909,-691.09,0.00042,30]
[310967755,1704836036918,-820.84,0.00042,30]
[310967756,1704836036928,-500.0,0.00042,30]
[310967757,1704836036937,-500.0,0.00042,7]
[310967758,1704836036949,-500.0,0.00042,30]
[310967759,1704836036959,-500.0,0.00042,30]
[310967760,1704836036968,-612.42,0.00042,30]
[310967761,1704836036978,-500.0,0.00042,30]
[310967762,1704836036988,-500.0,0.00042,30]
[310967763,1704836036997,-500.0,0.00042,30]
[310967764,1704836037008,-700.31,0.00042,30]
[310967765,1704836037018,-395.03799068,0.00042,30]
[310967766,1704836037028,-1173.84,0.00042,30]
[310967767,1704836037037,-890.72,0.00042,30]
[310967768,1704836037046,-519.17,0.00042,30]
[310967769,1704836037056,-681.49,0.00042,30]
[310967770,1704836037066,-627.48,0.00042,30]
[310967771,1704836037075,-1141.38,0.00042,30]
[310967772,1704836037084,-596.45,0.00042,30]
[310967773,1704836037093,-1148.32,0.00042,30]
[310967774,1704836037102,-616.05,0.00042,30]
[310967775,1704836037111,-1154.54,0.00042,30]
[310967776,1704836037121,-500.0,0.00042,30]
[310967777,1704836037130,-622.7,0.00042,30]
[310967778,1704836037139,-1370.57,0.00042,30]
[310967779,1704836037149,-724.45,0.00042,30]
[310967780,1704836037158,-555.95,0.00042,30]
[310967781,1704836037167,-677.52,0.00042,30]
[310967782,1704836037176,-500.0,0.00042,30]
[310967783,1704836037185,-500.0,0.00042,30]
[310967784,1704836037194,-500.0,0.00042,30]
[310967785,1704836037208,-500.0,0.00042,30]
[310967786,1704836037218,-500.0,0.00042,30]
[310967787,1704836037228,-854.7,0.00042,30]
[310967788,1704836037237,-1132.67,0.00042,30]
[310967789,1704836037249,-500.0,0.00042,30]
[310967790,1704836037259,-950.79,0.00042,30]
[310967791,1704836037268,-500.0,0.00042,30]
[310967792,1704836037279,-500.0,0.00042,30]
[310967793,1704836037289,-1393.23,0.00042,30]
[310967794,1704836037299,-1054.09,0.00042,30]
[310967795,1704836037309,-500.0,0.00042,30]
[310967796,1704836037319,-500.0,0.00042,30]
[310967797,1704836037329,-500.0,0.00042,30]
[310967798,1704836037339,-982.92,0.00042,30]
[310967799,1704836037350,-897.66,0.00042,30]
[310967800,1704836037359,-612.78,0.00042,30]
[310967801,1704836037370,-1038.74,0.00042,30]
[310967802,1704836037381,-500.0,0.00042,30]
[310967803,1704836037391,-500.0,0.00042,30]
[310967804,1704836037402,-585.83,0.00042,30]
[310967805,1704836037415,-1010.24,0.00042,30]
[310967806,1704836037425,-625.2,0.00042,30]
[310967807,1704836037435,-500.0,0.00042,30]
[310967808,1704836037445,-1823.52,0.00042,30]
[310967809,1704836037672,-1503.9,0.00042,30]
[310967810,1704836037682,-500.0,0.00042,30]
[310967811,1704836037691,-975.74,0.00042,30]
[310967812,1704836037703,-860.51,0.00042,30]
[310967813,1704836037712,-693.44,0.00042,30]
[310967814,1704836037721,-1252.33,0.00042,30]
[310967815,1704836037730,-812.42,0.00042,30]
[310967816,1704836037740,-500.0,0.00042,30]
[310967817,1704836037749,-1661.63,0.00042,30]
[310967818,1704836037759,-835.41,0.00042,30]
[310967819,1704836037768,-929.16,0.00042,30]
[310967820,1704836037778,-500.0,0.00042,30]
[310967821,1704836037789,-996.89,0.00042,4]
[310967822,1704836037798,-500.0,0.00042,30]
[310967823,1704836037807,-500.0,0.00042,30]
[310967824,1704836037817,-500.0,0.00042,30]
[310967825,1704836037826,-1020.06,0.00042,30]
[310967826,1704836037836,-500.0,0.00042,30]
[310967827,1704836037844,-955.18,0.00042,30]
[310967828,1704836037854,-1186.89,0.00042,30]
[310967829,1704836037863,-500.0,0.00042,2]
[310967830,1704836037873,-500.0,0.00042,30]
[310967831,1704836037882,-636.74,0.00042,30]
[310967832,1704836037891,-768.37,0.00042,30]
[310967833,1704836037900,-623.64,0.00042,30]
[310967834,1704836037910,-500.0,0.00042,30]
[310967835,1704836037919,-1030.22,0.00042,30]
[310967836,1704836037932,-848.66,0.00042,30]
[310967837,1704836037943,-500.0,0.00042,30]
[310967838,1704836037957,-1351.73,0.00042,30]
[310967839,1704836037967,-555.34,0.00042,30]
[310967840,1704836037977,-500.0,0.00042,30]
[310967841,1704836037988,-1236.91,0.00042,30]
[310967842,1704836037997,-551.84,0.00042,30]
[310967843,1704836038006,-500.0,0.00042,30]
[310967844,1704836038017,-576.84,0.00042,30]
[310967845,1704836038028,-1038.11,0.00042,30]
[310967846,1704836038037,-500.0,0.00042,30]
[310967847,1704836038047,-500.0,0.00042,30]
[310967848,1704836038057,-500.0,0.00042,30]
[310967849,1704836038066,-1358.69,0.00042,30]
[310967850,1704836038075,-1217.37,0.00042,30]
[310967851,1704836038085,-500.0,0.00042,30]
[310967852,1704836038094,-500.0,0.00042,30]
[310967853,1704836038106,-1307.04,0.00042,30]
[310967854,1704836038115,-2306.18,0.00042,30]
[310967855,1704836038125,-474.35434066,0.00042,30]
[310967856,1704836038134,-500.0,0.00042,30]
[310967857,1704836038144,-1192.74,0.00042,30]
[310967858,1704836038154,-500.0,0.00042,30]
[310967859,1704836038164,-500.0,0.00042,30]
[310967860,1704836038174,-574.49193507,0.00042,30]
[310967861,1704836038184,-611.23,0.00042,30]
[310967862,1704836038194,-907.9,0.00042,30]
[310967863,1704836038205,-996.68,0.00042,30]
[310967864,1704836038214,-500.0,0.00042,30]
[310967865,1704836038224,-500.0,0.00042,30]
[310967866,1704836038234,-627.06,0.00042,30]
[310967867,1704836038244,-500.0,0.00042,30]
[310967868,1704836038254,-500.0,0.00042,30]
[310967869,1704836038264,-503.95,0.00042,30]
[310967870,1704836038274,-500.0,0.00042,30]
[310967871,1704836038283,-500.0,0.00042,30]
[310967872,1704836038293,-968.8,0.00042,30]
[310967873,1704836038303,-1396.88,0.00042,30]
[310967874,1704836038313,-635.82,0.00042,30]
[310967875,1704836038322,-1404.61,0.00042,30]
[310967876,1704836038332,-1231.44,0.00042,30]
[310967877,1704836038342,-500.0,0.00042,30]
[310967878,1704836038352,-554.78,0.00042,30]
[310967879,1704836038361,-500.0,0.00042,30]
[310967880,1704836038371,-1763.53,0.00042,30]
[310967881,1704836038381,-500.0,0.00042,30]
[310967882,1704836038390,-801.87,0.00042,30]
[310967883,1704836038399,-500.0,0.00042,30]
[310967884,1704836038408,-604.58,0.00042,30]
[310967885,1704836038417,-1257.01,0.00042,30]
[310967886,1704836038427,-1231.81,0.00042,30]
[310967887,1704836038436,-2010.91,0.00042,30]
[310967888,1704836038447,-1440.75,0.00042,30]
[310967889,1704836038456,-896.14,0.00042,30]
[310967890,1704836038465,-500.0,0.00042,30]
[310967891,1704836038475,-1418.35,0.00042,30]
[310967892,1704836038484,-632.29,0.00042,30]
[310967893,1704836038494,-808.1,0.00042,30]
[310967894,1704836038503,-921.45,0.00042,30]
[310967895,1704836038512,-500.0,0.00042,30]
[310967896,1704836038521,-500.0,0.00042,30]
[310967897,1704836038531,-1186.03,0.00042,30]
[310967898,1704836038540,-1164.7,0.00042,30]
[310967899,1704836038550,-640.28,0.00042,30]
[310967900,1704836038559,-1105.56,0.00042,30]
[310967901,1704836038569,-602.96,0.00042,30]
[310967902,1704836038578,-943.57,0.00042,30]
[310967903,1704836038587,-500.0,0.00042,30]
[310967904,1704836038596,-771.07,0.00042,30]
[310967905,1704836038606,-1027.4,0.00042,30]
[310967906,1704836038615,-500.0,0.00042,30]
[310967907,1704836038624,-500.0,0.00042,30]
[310967908,1704836038634,-1051.31,0.00042,30]
[310967909,1704836038643,-500.0,0.00042,30]
[310967910,1704836038653,-916.0,0.00042,30]
[310967911,1704836038662,-500.0,0.00042,5]
[310967912,1704836038672,-1267.33,0.00042,30]
[310967913,1704836038682,-538.74,0.00042,7]
[310967914,1704836038691,-701.87,0.00042,30]
[310967915,1704836038701,-1238.29,0.00042,30]
[310967916,1704836038710,-759.13,0.00042,30]
[310967917,1704836038719,-606.97,0.00042,30]
[310967918,1704836038728,-500.0,0.00042,30]
[310967919,1704836038738,-1550.35,0.00042,30]
[310967920,1704836038747,-500.0,0.00042,30]
[310967921,1704836038756,-639.29,0.00042,30]
[310967922,1704836038766,-836.7,0.00042,30]
[310967923,1704836038775,-667.99,0.00042,30]
[310967924,1704836038785,-500.0,0.00042,30]
[310967925,1704836038794,-896.55,0.00042,30]
[310967926,1704836038804,-500.0,0.00042,30]
[310967927,1704836038814,-1272.22,0.00042,30]
[310967928,1704836038823,-548.7,0.00042,30]
[310967929,1704836038833,-814.27,0.00042,30]
[310967930,1704836038842,-689.54,0.00042,30]
[310967931,1704836038852,-1819.38,0.00042,30]
[310967932,1704836038862,-515.4,0.00042,30]
[310967933,1704836038872,-2289.47,0.00042,30]
[310967934,1704836038881,-1865.7,0.00042,30]
[310967935,1704836038890,-500.0,0.00042,30]
[310967936,1704836038900,-1130.6,0.00042,30]
[310967937,1704836038909,-500.0,0.00042,30]
[310967938,1704836038918,-1020.46,0.00042,30]
[310967939,1704836038928,-808.92,0.00042,30]
[310967940,1704836038938,-765.7,0.00042,30]
[310967941,1704836038949,-500.0,0.00042,30]
[310967942,1704836038958,-806.27,0.00042,30]
[310967943,1704836038969,-1306.79,0.00042,30]
[310967944,1704836038979,-500.0,0.00042,30]
[310967945,1704836038989,-500.0,0.00042,30]
[310967946,1704836038999,-694.96,0.00042,30]
[310967947,1704836039010,-1503.44,0.00042,30]
[310967948,1704836039020,-500.0,0.00042,30]
[310967949,1704836039030,-805.81,0.00042,30]
[310967950,1704836039039,-500.0,0.00042,30]
[310967951,1704836039048,-909.79,0.00042,30]
[310967952,1704836039058,-1129.19,0.00042,30]
[310967953,1704836039067,-500.0,0.00042,30]
[310967954,1704836039077,-923.88,0.00042,30]
[310967955,1704836039086,-611.47,0.00042,30]
[310967956,1704836039096,-3103.78,0.00042,30]
[310967957,1704836039106,-500.0,0.00042,30]
[310967958,1704836039116,-500.0,0.00042,30]
[310967959,1704836039125,-500.0,0.00042,30]
[310967960,1704836039135,-500.0,0.00042,30]
[310967961,1704836039145,-3251.04,0.00042,30]
[310967962,1704836039155,-500.0,0.00042,30]
[310967963,1704836039165,-740.01,0.00042,30]
[310967964,1704836039176,-546.86,0.00042,30]
[310967965,1704836039186,-1698.45,0.00042,30]
[310967966,1704836039195,-1000.0,0.00042,2]
[310967967,1704836039209,-500.0,0.00042,30]
[310967968,1704836039219,-500.0,0.00042,30]
[310967969,1704836039229,-500.0,0.00042,30]
[310967970,1704836039239,-500.0,0.00042,30]
[310967971,1704836039248,-1031.59,0.00042,30]
[310967972,1704836039258,-739.45,0.00042,30]
[310967973,1704836039268,-500.0,0.00042,30]
[310967974,1704836039278,-1341.58,0.00042,30]
[310967975,1704836039288,-500.0,0.00042,30]
[310967976,1704836039297,-586.37839407,0.00042,30]
[310967977,1704836039307,-579.92,0.00042,30]
[310967978,1704836039316,-962.12,0.00042,30]
[310967979,1704836039326,-550.03,0.00042,30]
[310967980,1704836039336,-12867.13,0.00042,30]
[310967981,1704836039346,-300.0,0.00042,17]
[310967982,1704836039355,-897.67,0.00042,30]
[310967983,1704836039364,-864.6,0.00042,30]
[310967984,1704836039376,-550.26,0.00042,30]
[310967985,1704836039386,-1997.12,0.00042,30]
[310967986,1704836039396,-998.19,0.00042,30]
[310967987,1704836039407,-1195.83,0.00042,30]
[310967988,1704836039417,-48899.91,0.00042,30]
[310967989,1704836039427,-500.0,0.00042,30]
[310967990,1704836039436,-500.0,0.00042,30]
[310967991,1704836039445,-654.66,0.00042,30]
[310967992,1704836039458,-2469.86,0.00042,30]
[310967993,1704836039467,-150.0,0.00042,26]
[310967994,1704836039477,-808.31,0.00042,30]
[310967995,1704836039486,-673.33,0.00042,30]
[310967996,1704836039495,-259.79,0.00042,30]
[310967997,1704836039505,-500.0,0.00042,30]
[310967998,1704836039706,-2521.48,0.00042,30]
[310967999,1704836039730,-2801.21,0.00042,30]
[310968000,1704836039741,-626.68,0.00042,30]
[310968001,1704836039751,-886.46,0.00042,30]
[310968002,1704836039761,-1955.03,0.00042,30]
[310968003,1704836039771,-767.91,0.00042,30]
[310968004,1704836039780,-500.0,0.00042,30]
[310968005,1704836039790,-2192.68,0.00042,30]
[310968006,1704836039800,-1009.87,0.00042,7]
[310968007,1704836039809,-991.57,0.00042,30]
[310968008,1704836039820,-500.0,0.00042,30]
[310968009,1704836039829,-500.0,0.00042,30]
[310968010,1704836039840,-828.51,0.00042,30]
[310968011,1704836039850,-1000.0,0.00042,2]
[310968012,1704836039859,-500.0,0.00042,30]
[310968013,1704836039869,-2108.88,0.00042,30]
[310968014,1704836039879,-1931.34,0.00042,30]
[310968015,1704836039888,-3347.6,0.00042,30]
[310968016,1704836039898,-14790.64,0.00042,30]
[310968017,1704836039907,-822.65,0.00042,30]
[310968018,1704836039918,-1430.23,0.00042,30]
[310968019,1704836039928,-5678.13,0.00042,30]
[310968020,1704836039937,-610.39,0.00042,30]
[310968021,1704836039947,-1617.86,0.00042,30]
[310968022,1704836039960,-1087.77,0.00042,30]
[310968023,1704836039970,-2799.84,0.00042,30]
[310968024,1704836039979,-733.18,0.00042,30]
[310968025,1704836039989,-500.0,0.00042,30]
[310968026,1704836039999,-500.0,0.00042,30]
[310968027,1704836040010,-1593.04,0.00042,30]
[310968028,1704836040020,-500.0,0.00042,30]
[310968029,1704836040031,-1520.5,0.00042,30]
[310968030,1704836040042,-502.92,0.00042,30]
[310968031,1704836040053,-1804.05,0.00042,30]
[310968032,1704836040064,-539.66,0.00042,30]
[310968033,1704836040074,-857.84,0.00042,30]
[310968034,1704836040084,-1689.37,0.00042,30]
[310968035,1704836040095,-1039.06,0.00042,30]
[310968036,1704836040105,-4621.51,0.00042,30]
[310968037,1704836040114,-500.0,0.00042,30]
[310968038,1704836040124,-704.14,0.00042,30]
[310968039,1704836040134,-4643.53,0.00042,30]
[310968040,1704836040144,-500.0,0.00042,30]
[310968041,1704836040154,-1420.75,0.00042,30]
[310968042,1704836040163,-500.0,0.00042,30]
[310968043,1704836040173,-571.44,0.00042,30]
[310968044,1704836040183,-3385.64,0.00042,30]
[310968045,1704836040192,-500.0,0.00042,30]
[310968046,1704836040204,-2540.83,0.00042,30]
[310968047,1704836040214,-965.39,0.00042,30]
[310968048,1704836040223,-500.0,0.00042,30]
[310968049,1704836040233,-791.0,0.00042,30]
[310968050,1704836040243,-2213.16,0.00042,30]
[310968051,1704836040253,-500.0,0.00042,30]
[310968052,1704836040263,-846.61,0.00042,30]
[310968053,1704836040273,-2650.5,0.00042,30]
[310968054,1704836040283,-786.95,0.00042,30]
[310968055,1704836040293,-573.71804957,0.00042,30]
[310968056,1704836040304,-500.0,0.00042,30]
[310968057,1704836040314,-1349.94,0.00042,30]
[310968058,1704836040325,-500.0,0.00042,30]
[310968059,1704836040334,-832.69,0.00042,30]
[310968060,1704836040344,-2311.91,0.00042,30]
[310968061,1704836040355,-1396.93,0.00042,30]
[310968062,1704836040364,-500.0,0.00042,30]
[310968063,1704836040375,-500.0,0.00042,30]
[310968064,1704836040385,-14690.46,0.00042,30]
[310968065,1704836040395,-2102.03,0.00042,30]
[310968066,1704836040405,-500.0,0.00042,30]
[310968067,1704836040414,-500.0,0.00042,30]
[310968068,1704836040424,-3431.96,0.00042,30]
[310968069,1704836040434,-2567.2,0.00042,30]
[310968070,1704836040444,-6568.56,0.00042,30]
[310968071,1704836040455,-534.6,0.00042,30]
[310968072,1704836040465,-4057.32,0.00042,30]
[310968073,1704836040475,-1036.03,0.00042,30]
[310968074,1704836040484,-5465.29,0.00042,30]
[310968075,1704836040494,-1046.98,0.00042,30]
[310968076,1704836040504,-707.65,0.00042,30]
[310968077,1704836040514,-3677.68,0.00042,30]
[310968078,1704836040524,-558.03,0.00042,30]
[310968079,1704836040534,-503.66,0.00042,30]
[310968080,1704836040543,-2846.34,0.00042,30]
[310968081,1704836040553,-796.49,0.00042,30]
[310968082,1704836040562,-500.0,0.00042,30]
[310968083,1704836040572,-311.3158224,0.00042,6]
[310968084,1704836040581,-2255.93,0.00042,30]
[310968085,1704836040591,-2496.21,0.00042,30]
[310968086,1704836040601,-2311.14,0.00042,30]
[310968087,1704836040610,-3376.56,0.00042,30]
[310968088,1704836040620,-692.76,0.00042,30]
[310968089,1704836040629,-1358.66,0.00042,30]
[310968090,1704836040639,-769.11,0.00042,30]
[310968091,1704836040649,-1845.73,0.00042,30]
[310968092,1704836040658,-500.0,0.00042,30]
[310968093,1704836040668,-13108.96,0.00042,30]
[310968094,1704836040678,-500.0,0.00042,30]
[310968095,1704836040687,-9899.51,0.00042,30]
[310968096,1704836040698,-10579.54,0.00042,30]
[310968097,1704836040709,-1436.88,0.00042,30]
[310968098,1704836040719,-1636.08,0.00042,30]
[310968099,1704836040728,-500.0,0.00042,30]
[310968100,1704836040738,-780.53,0.00042,30]
[310968101,1704836040748,-1868.59,0.00042,30]
[310968102,1704836040758,-583.25,0.00042,30]
[310968103,1704836040768,-1387.57,0.00042,30]
[310968104,1704836040778,-7300.87,0.00042,30]
[310968105,1704836040788,-500.0,0.00042,30]
[310968106,1704836040797,-1200.98,0.00042,30]
[310968107,1704836040807,-1010.7,0.00042,30]
[310968108,1704836040817,-2024.47,0.00042,30]
[310968109,1704836040827,-3584.51,0.00042,30]
[310968110,1704836040837,-829.24,0.00042,30]
[310968111,1704836040847,-663.65,0.00042,30]
[310968112,1704836040857,-1022.82,0.00042,30]
[310968113,1704836040867,-719.05,0.00042,30]
[310968114,1704836040877,-46514.0,0.00042,2]
[310968115,1704836040887,-1279.36,0.00042,30]
[310968116,1704836040897,-500.0,0.00042,30]
[310968117,1704836040907,-1955.18,0.00042,30]
[310968118,1704836040916,-5923.58,0.00042,30]
[310968119,1704836040927,-1276.96,0.00042,30]
[310968120,1704836040937,-1076.29,0.00042,30]
[310968121,1704836040947,-3773.23,0.00042,30]
[310968122,1704836040964,-3976.14,0.00042,30]
[310968123,1704836040973,-2969.33,0.00042,30]
[310968124,1704836040983,-1442.56,0.00042,30]
[310968125,1704836040993,-1085.14,0.00042,30]
[310968126,1704836041003,-546.98,0.00042,30]
[310968127,1704836041012,-1958.44,0.00042,30]
[310968128,1704836041022,-500.0,0.00042,30]
[310968129,1704836041031,-6261.12,0.00042,30]
[310968130,1704836041041,-500.0,0.00042,30]
[310968131,1704836041051,-1066.92,0.00042,30]
[310968132,1704836041060,-645.66,0.00042,30]
[310968133,1704836041070,-894.85,0.00042,30]
[310968134,1704836041079,-2874.62,0.00042,30]
[310968135,1704836041089,-3862.71,0.00042,30]
[310968136,1704836041099,-1757.07,0.00042,30]
[310968137,1704836041108,-273.32,0.00042,30]
[310968138,1704836041118,-4543.27,0.00042,30]
[310968139,1704836041127,-1341.14,0.00042,30]
[310968140,1704836041137,-577.82,0.00042,30]
[310968141,1704836041146,-500.0,0.00042,30]
[310968142,1704836041156,-500.0,0.00042,30]
[310968143,1704836041166,-901.82,0.00042,30]
[310968144,1704836041175,-500.0,0.00042,30]
[310968145,1704836041184,-3856.08,0.00042,30]
[310968146,1704836041194,-1349.44,0.00042,30]
[310968147,1704836041207,-1130.33,0.00042,30]
[310968148,1704836041216,-588.78,0.00042,30]
[310968149,1704836041226,-1641.57,0.00042,30]
[310968150,1704836041234,-1586.06,0.00042,30]
[310968151,1704836041244,-760.68,0.00042,30]
[310968152,1704836041252,-857.88,0.00042,30]
[310968153,1704836041262,-3762.07,0.00042,30]
[310968154,1704836041271,-500.0,0.00042,30]
[310968155,1704836041280,-536.72,0.00042,30]
[310968156,1704836041290,-550.1,0.00042,30]
[310968157,1704836041299,-4355.86,0.00042,30]
[310968158,1704836041308,-4420.44,0.00042,30]
[310968159,1704836041318,-1511.36,0.00042,30]
[310968160,1704836041328,-500.0,0.00042,30]
[310968161,1704836041337,-1161.02,0.00042,30]
[310968162,1704836041346,-10725.89,0.00042,30]
[310968163,1704836041356,-1044.46,0.00042,30]
[310968164,1704836041366,-500.0,0.00042,30]
[310968165,1704836041378,-929.83,0.00042,30]
[310968166,1704836041388,-867.5,0.00042,30]
[310968167,1704836041397,-720.34,0.00042,30]
[310968168,1704836041407,-6977.93,0.00042,30]
[310968169,1704836041416,-500.0,0.00042,30]
[310968170,1704836041427,-964.23,0.00042,30]
[310968171,1704836041436,-1586.56,0.00042,30]
[310968172,1704836041445,-3056.94,0.00042,30]
[310968173,1704836041457,-500.0,0.00042,7]
[310968174,1704836041467,-500.0,0.00042,30]
[310968175,1704836041477,-1370.1,0.00042,30]
[310968176,1704836041486,-3469.89,0.00042,30]